Department Family,Entity,Date Paid,Expense Type,Expense Area,Supplier,Transaction Number,Amount (�),Supplier VAT Registration Number
BEIS,Met Office,2022-08-03,11 SERVICES,TECHNOLOGY AND CIO,AMAZON WEB SERVICES INC.,10708,1100.13,N/A
BEIS,Met Office,2022-08-03,11 SERVICES,TECHNOLOGY AND CIO,AMAZON WEB SERVICES INC.,10710,196602.28,N/A
BEIS,Met Office,2022-08-03,11 SERVICES,TECHNOLOGY AND CIO,AMAZON WEB SERVICES INC.,10711,17687.73,N/A
BEIS,Met Office,2022-08-03,07 EQUIPMENT,SERVICES,METOCEAN TELEMATICS LTD,10715,259.35,-
BEIS,Met Office,2022-08-17,11 SERVICES,SERVICES,NSSL GLOBAL LTD,10721,75.14,725151948
BEIS,Met Office,2022-08-17,11 SERVICES,SERVICES,NSSL GLOBAL LTD,10722,58.44,725151948
BEIS,Met Office,2022-08-10,11 SERVICES,PEOPLE,PLURALSIGHT,10724,444.66,EU826020045
BEIS,Met Office,2022-08-24,11 SERVICES,PROGRAMMES,UCAR INCOMING PAYMENTS,10727,9163.64,-
BEIS,Met Office,2022-08-03,11 SERVICES,MARKETS,"INTELLOVATIONS, LLC",10729,1788.64,-
BEIS,Met Office,2022-08-31,11 SERVICES,TECHNOLOGY AND CIO,AMAZON WEB SERVICES INC.,10731,851.18,N/A
BEIS,Met Office,2022-08-10,11 SERVICES,MARKETS,ICIMOD,10737,41595.33,-
BEIS,Met Office,2022-08-10,11 SERVICES,MARKETS,ICIMOD,10737,20850.49,-
BEIS,Met Office,2022-08-31,11 SERVICES,CHIEF FINANCIAL OFFICER,"PROSCI, INC.",10738,12592.16,-
BEIS,Met Office,2022-08-24,11 SERVICES,MARKETS,World Food Programme,10739,54694.79,-
BEIS,Met Office,2022-08-31,11 SERVICES,PROGRAMMES,"K F LEWIN CONSULTING, LLC",10741,973.79,-
BEIS,Met Office,2022-08-31,07 EQUIPMENT,SERVICES,METOCEAN TELEMATICS LTD,10742,270.06,-
BEIS,Met Office,2022-08-24,11 SERVICES,MARKETS,ICIMOD,10751,40960.26,-
BEIS,Met Office,2022-08-24,11 SERVICES,MARKETS,ICIMOD,10752,27348.44,-
BEIS,Met Office,2022-08-24,11 SERVICES,MARKETS,ICIMOD,10753,41784.39,-
BEIS,Met Office,2022-08-24,11 SERVICES,MARKETS,ICIMOD,10753,2378.53,-
BEIS,Met Office,2022-08-03,STOCK,SERVICES,VAISALA LTD,23901,0,336100011
BEIS,Met Office,2022-08-03,STOCK,SERVICES,VAISALA LTD,23901,0,336100011
BEIS,Met Office,2022-08-03,TRADE CREDITORS,SERVICES,VAISALA LTD,23901,13772.81,336100011
BEIS,Met Office,2022-08-03,TRADE CREDITORS,SERVICES,VAISALA LTD,23901,7561.21,336100011
BEIS,Met Office,2022-08-03,STOCK,SERVICES,VAISALA LTD,23930,0,336100011
BEIS,Met Office,2022-08-03,TRADE CREDITORS,SERVICES,VAISALA LTD,23930,41123.45,336100011
BEIS,Met Office,2022-08-31,11 SERVICES,MARKETS,"IBL SOFTWARE ENGINEERING, SPOL S.R.O.",23946,12048.9,SK2020241883
BEIS,Met Office,2022-08-03,11 SERVICES,MARKETS,CONSULTEC,23964,10306.2,400005915
BEIS,Met Office,2022-08-03,13 MISCELLANEOUS,CHIEF FINANCIAL OFFICER,DEMSTAR BUSINESS SOLUTIONS LTD,24038,98.11,10156145J
BEIS,Met Office,2022-08-03,STOCK,SERVICES,VAISALA LTD,24039,0,336100011
BEIS,Met Office,2022-08-03,TRADE CREDITORS,SERVICES,VAISALA LTD,24039,52806.21,336100011
BEIS,Met Office,2022-08-03,STOCK,SERVICES,VAISALA LTD,24040,0,336100011
BEIS,Met Office,2022-08-03,TRADE CREDITORS,SERVICES,VAISALA LTD,24040,82958.02,336100011
BEIS,Met Office,2022-08-10,11 SERVICES,SERVICES,COLLECTE LOCALISATION SATELLITES (C.L.S.),24112,5375.3,FR95338034390
BEIS,Met Office,2022-08-10,10 EQUIPMENT MAINTENANCE,SERVICES,MYONIC GMBH,24113,1085.58,DE147353887
BEIS,Met Office,2022-08-10,10 EQUIPMENT MAINTENANCE,SERVICES,MYONIC GMBH,24113,1456.62,DE147353887
BEIS,Met Office,2022-08-10,13 MISCELLANEOUS,SERVICES,COLLECTE LOCALISATION SATELLITES (C.L.S.),24114,295.14,FR95338034390
BEIS,Met Office,2022-08-10,11 SERVICES,SERVICES,COLLECTE LOCALISATION SATELLITES (C.L.S.),24115,8429.06,FR95338034390
BEIS,Met Office,2022-08-31,STOCK,SERVICES,VAISALA LTD,24119,0,336100011
BEIS,Met Office,2022-08-31,TRADE CREDITORS,SERVICES,VAISALA LTD,24119,5088.63,336100011
BEIS,Met Office,2022-08-24,10 EQUIPMENT MAINTENANCE,SERVICES,RAYMETRICS S.A. (GREEK ACCOUNT),24125,3805,EL999641589
BEIS,Met Office,2022-08-03,11 SERVICES,CHIEF FINANCIAL OFFICER,TELIA FINLAND OYJ,24126,186.63,FI14756079
BEIS,Met Office,2022-08-31,13 MISCELLANEOUS,CHIEF FINANCIAL OFFICER,DEMSTAR BUSINESS SOLUTIONS LTD,24128,83.12,10156145J
BEIS,Met Office,2022-08-10,10 EQUIPMENT MAINTENANCE,SERVICES,MINERVA MEETTECHNIEK BV,24134,439.5,NL850600170B01
BEIS,Met Office,2022-08-31,11 SERVICES,CHIEF FINANCIAL OFFICER,TELIA FINLAND OYJ,24141,59.39,FI14756079
BEIS,Met Office,2022-08-24,11 SERVICES,CHIEF FINANCIAL OFFICER,EIR,24142,258.52,4736919B
BEIS,Met Office,2022-08-10,11 SERVICES,MARKETS,BEIS,428136,12066,888825550
BEIS,Met Office,2022-08-04,11 SERVICES,MARKETS,WORLDPAY LTD,459299,-333.65,991280207
BEIS,Met Office,2022-08-04,11 SERVICES,MARKETS,WORLDPAY LTD,459691,24.25,991280207
BEIS,Met Office,2022-08-04,11 SERVICES,MARKETS,WORLDPAY LTD,460670,23.25,991280207
BEIS,Met Office,2022-08-04,11 SERVICES,MARKETS,WORLDPAY LTD,461210,15.05,991280207
BEIS,Met Office,2022-08-04,11 SERVICES,MARKETS,WORLDPAY LTD,461525,27.35,991280207
BEIS,Met Office,2022-08-04,11 SERVICES,MARKETS,WORLDPAY LTD,462487,27.15,991280207
BEIS,Met Office,2022-08-03,11 SERVICES,MARKETS,POLICY CONNECT LTD,462675,350,665428806
BEIS,Met Office,2022-08-04,11 SERVICES,MARKETS,WORLDPAY LTD,463442,25.55,991280207
BEIS,Met Office,2022-08-04,11 SERVICES,MARKETS,WORLDPAY LTD,464395,24.85,991280207
BEIS,Met Office,2022-08-18,11 SERVICES,CHIEF FINANCIAL OFFICER,DIGITAL COMMUNICATIONS SYSTEMS LIMITED,465347,-2401.24,GB 556 1971 19
BEIS,Met Office,2022-08-04,11 SERVICES,MARKETS,WORLDPAY LTD,465405,24.65,991280207
BEIS,Met Office,2022-08-25,06 ACCOMMODATION,CHIEF FINANCIAL OFFICER,Exeter City Council,465754,140288,142335594
BEIS,Met Office,2022-08-18,11 SERVICES,CHIEF FINANCIAL OFFICER,DIGITAL COMMUNICATIONS SYSTEMS LIMITED,465994,1768.35,GB 556 1971 19
BEIS,Met Office,2022-08-15,11 SERVICES,OFFICE OF THE CEO,DAMAR LIMITED,466516,400,883 2512 13
BEIS,Met Office,2022-08-04,11 SERVICES,MARKETS,WORLDPAY LTD,466748,28.25,991280207
BEIS,Met Office,2022-08-04,11 SERVICES,MARKETS,WORLDPAY LTD,467772,25.35,991280207
BEIS,Met Office,2022-08-31,11 SERVICES,PEOPLE,SWANTECH LOGISTICS LTD,468158,900,769332401
BEIS,Met Office,2022-08-04,06 ACCOMMODATION,CHIEF FINANCIAL OFFICER,FMS INTERIOR SERVICES LTD,468200,930,922056940
BEIS,Met Office,2022-08-03,11 SERVICES,MARKETS,FCDO,468563,22976.46,888813560
BEIS,Met Office,2022-08-04,11 SERVICES,MARKETS,WORLDPAY LTD,468610,26.65,991280207
BEIS,Met Office,2022-08-10,FIXTURE & FITTINGS,CHIEF FINANCIAL OFFICER,THORLUX LIGHTING,468972,51025.83,GB 109 939 440
BEIS,Met Office,2022-08-05,11 SERVICES,MARKETS,ULTRA ELECTRONICS LTD NUCLEAR CONTROL SYSTEMS,469078,28542.5,123340754
BEIS,Met Office,2022-08-01,11 SERVICES,PEOPLE,FRANCIS CLARK LLP,469083,2500,855910212
BEIS,Met Office,2022-08-01,STOCK,SERVICES,GH ZEAL LTD,469084,0,648929087
BEIS,Met Office,2022-08-01,TRADE CREDITORS,SERVICES,GH ZEAL LTD,469084,10800,648929087
BEIS,Met Office,2022-08-01,11 SERVICES,SERVICES,GH ZEAL LTD,469084,17.5,648929087
BEIS,Met Office,2022-08-24,STOCK,SERVICES,TOTEX CORPORATION,469132,0,-
BEIS,Met Office,2022-08-24,STOCK,SERVICES,TOTEX CORPORATION,469132,0,-
BEIS,Met Office,2022-08-24,STOCK,SERVICES,TOTEX CORPORATION,469132,0,-
BEIS,Met Office,2022-08-24,STOCK,SERVICES,TOTEX CORPORATION,469132,0,-
BEIS,Met Office,2022-08-24,STOCK,SERVICES,TOTEX CORPORATION,469132,0,-
BEIS,Met Office,2022-08-24,STOCK,SERVICES,TOTEX CORPORATION,469132,0,-
BEIS,Met Office,2022-08-24,STOCK,SERVICES,TOTEX CORPORATION,469132,0,-
BEIS,Met Office,2022-08-24,TRADE CREDITORS,SERVICES,TOTEX CORPORATION,469132,819,-
BEIS,Met Office,2022-08-24,TRADE CREDITORS,SERVICES,TOTEX CORPORATION,469132,2851.2,-
BEIS,Met Office,2022-08-24,TRADE CREDITORS,SERVICES,TOTEX CORPORATION,469132,8586,-
BEIS,Met Office,2022-08-24,TRADE CREDITORS,SERVICES,TOTEX CORPORATION,469132,16320,-
BEIS,Met Office,2022-08-24,TRADE CREDITORS,SERVICES,TOTEX CORPORATION,469132,15789.6,-
BEIS,Met Office,2022-08-24,TRADE CREDITORS,SERVICES,TOTEX CORPORATION,469132,4455,-
BEIS,Met Office,2022-08-24,TRADE CREDITORS,SERVICES,TOTEX CORPORATION,469132,5320,-
BEIS,Met Office,2022-08-12,11 SERVICES,MARKETS,ULTRA ELECTRONICS LTD NUCLEAR CONTROL SYSTEMS,469471,9594,123340754
BEIS,Met Office,2022-08-03,11 SERVICES,TECHNOLOGY AND CIO,BLOOMREACH B.V.,469498,310907,NL815260076B01
BEIS,Met Office,2022-08-04,11 SERVICES,MARKETS,WORLDPAY LTD,469522,26.25,991280207
BEIS,Met Office,2022-08-19,10 EQUIPMENT MAINTENANCE,SERVICES,Campbell Scientific Ltd,469587,648.9,428453933
BEIS,Met Office,2022-08-19,10 EQUIPMENT MAINTENANCE,SERVICES,Campbell Scientific Ltd,469587,648.9,428453933
BEIS,Met Office,2022-08-19,10 EQUIPMENT MAINTENANCE,SERVICES,Campbell Scientific Ltd,469587,648.9,428453933
BEIS,Met Office,2022-08-19,10 EQUIPMENT MAINTENANCE,SERVICES,Campbell Scientific Ltd,469587,648.9,428453933
BEIS,Met Office,2022-08-19,10 EQUIPMENT MAINTENANCE,SERVICES,Campbell Scientific Ltd,469587,648.9,428453933
BEIS,Met Office,2022-08-19,10 EQUIPMENT MAINTENANCE,SERVICES,Campbell Scientific Ltd,469587,324,428453933
BEIS,Met Office,2022-08-19,10 EQUIPMENT MAINTENANCE,SERVICES,Campbell Scientific Ltd,469587,450,428453933
BEIS,Met Office,2022-08-19,11 SERVICES,SERVICES,Campbell Scientific Ltd,469587,60,428453933
BEIS,Met Office,2022-08-22,11 SERVICES,MARKETS,LHR BUSINESS SUPPORT CENTRE LTD,469769,13.75,927365404
BEIS,Met Office,2022-08-30,11 SERVICES,PEOPLE,YOUGOV PLC,469781,3775,991228109
BEIS,Met Office,2022-08-11,11 SERVICES,PROGRAMMES,Hr Wallingford Ltd,469784,15829,570039752
BEIS,Met Office,2022-08-01,11 SERVICES,PEOPLE,RESTORE RECORDS MANAGEMENT,469787,14.85,843 863011
BEIS,Met Office,2022-08-08,11 SERVICES,PROGRAMMES,HOGAN LOVELLS INTERNATIONAL LLP,469812,5685.55,GB123371543
BEIS,Met Office,2022-08-04,11 SERVICES,CHIEF FINANCIAL OFFICER,British Red Cross Society,469827,318,706926227
BEIS,Met Office,2022-08-08,11 SERVICES,OTHER,HOGAN LOVELLS INTERNATIONAL LLP,469828,247131.67,GB123371543
BEIS,Met Office,2022-08-10,11 SERVICES,TECHNOLOGY AND CIO,BAE SYSTEMS APPLIED INTELLIGENCE LIMITED,469908,10820,GB641407169
BEIS,Met Office,2022-08-10,11 SERVICES,TECHNOLOGY AND CIO,BAE SYSTEMS APPLIED INTELLIGENCE LIMITED,469910,3150,GB641407169
BEIS,Met Office,2022-08-10,11 SERVICES,TECHNOLOGY AND CIO,BAE SYSTEMS APPLIED INTELLIGENCE LIMITED,469919,12540,GB641407169
BEIS,Met Office,2022-08-10,11 SERVICES,TECHNOLOGY AND CIO,BAE SYSTEMS APPLIED INTELLIGENCE LIMITED,469920,21105,GB641407169
BEIS,Met Office,2022-08-11,11 SERVICES,TECHNOLOGY AND CIO,BAE SYSTEMS APPLIED INTELLIGENCE LIMITED,469921,14850,GB641407169
BEIS,Met Office,2022-08-10,11 SERVICES,TECHNOLOGY AND CIO,BAE SYSTEMS APPLIED INTELLIGENCE LIMITED,469923,6693.75,GB641407169
BEIS,Met Office,2022-08-10,11 SERVICES,TECHNOLOGY AND CIO,BAE SYSTEMS APPLIED INTELLIGENCE LIMITED,469925,6600,GB641407169
BEIS,Met Office,2022-08-10,11 SERVICES,TECHNOLOGY AND CIO,BAE SYSTEMS APPLIED INTELLIGENCE LIMITED,469927,16415,GB641407169
BEIS,Met Office,2022-08-10,11 SERVICES,TECHNOLOGY AND CIO,BAE SYSTEMS APPLIED INTELLIGENCE LIMITED,469928,15008,GB641407169
BEIS,Met Office,2022-08-17,STOCK,SERVICES,Campbell Scientific Ltd,469930,0,428453933
BEIS,Met Office,2022-08-17,TRADE CREDITORS,SERVICES,Campbell Scientific Ltd,469930,15838.2,428453933
BEIS,Met Office,2022-08-17,11 SERVICES,SERVICES,Campbell Scientific Ltd,469930,120,428453933
BEIS,Met Office,2022-08-02,11 SERVICES,SCIENCE,University Of Leeds,469939,83333.25,613451470
BEIS,Met Office,2022-08-09,11 SERVICES,CHIEF FINANCIAL OFFICER,POSTURITE (UK) LTD,469940,50,583565114
BEIS,Met Office,2022-08-09,11 SERVICES,CHIEF FINANCIAL OFFICER,POSTURITE (UK) LTD,469941,251.95,583565114
BEIS,Met Office,2022-08-02,FIXTURE & FITTINGS,CHIEF FINANCIAL OFFICER,THORLUX LIGHTING,469947,2846.64,GB 109 939 440
BEIS,Met Office,2022-08-02,FIXTURE & FITTINGS,CHIEF FINANCIAL OFFICER,THORLUX LIGHTING,469948,4495.48,GB 109 939 440
BEIS,Met Office,2022-08-10,11 SERVICES,TECHNOLOGY AND CIO,BAE SYSTEMS APPLIED INTELLIGENCE LIMITED,469979,10820,GB641407169
BEIS,Met Office,2022-08-01,11 SERVICES,CHIEF FINANCIAL OFFICER,INTEROUTE COMMUNICATIONS LIMITED,469980,7100,832 7071 39
BEIS,Met Office,2022-08-10,11 SERVICES,PROGRAMMES,UNIVERSITATBERN,469987,34879.29,280255
BEIS,Met Office,2022-08-01,12 INTERNATIONAL,MARKETS,APPLIED SATELLITE TECHNOLOGY SYSTEMS LTD,470083,35.86,720108683
BEIS,Met Office,2022-08-09,06 ACCOMMODATION,CHIEF FINANCIAL OFFICER,D&G OFFICE SERVICES LTD,470094,282,272997547
BEIS,Met Office,2022-08-09,06 ACCOMMODATION,CHIEF FINANCIAL OFFICER,D&G OFFICE SERVICES LTD,470094,281,272997547
BEIS,Met Office,2022-08-04,13 MISCELLANEOUS,SCIENCE,University Of Reading,470098,333.33,200012659
BEIS,Met Office,2022-08-05,11 SERVICES,PROGRAMMES,Campbell Scientific Ltd,470104,12240,428453933
BEIS,Met Office,2022-08-17,11 SERVICES,PROGRAMMES,MAURITIUS METEOROLOGICAL SOCIETY,470117,9500,-
BEIS,Met Office,2022-08-03,11 SERVICES,PROGRAMMES,BAE SYSTEMS APPLIED INTELLIGENCE LIMITED,470158,4500,GB641407169
BEIS,Met Office,2022-08-03,11 SERVICES,PROGRAMMES,BAE SYSTEMS APPLIED INTELLIGENCE LIMITED,470158,25586,GB641407169
BEIS,Met Office,2022-08-03,11 SERVICES,PROGRAMMES,BAE SYSTEMS APPLIED INTELLIGENCE LIMITED,470158,9197,GB641407169
BEIS,Met Office,2022-08-03,11 SERVICES,PROGRAMMES,BAE SYSTEMS APPLIED INTELLIGENCE LIMITED,470158,14070,GB641407169
BEIS,Met Office,2022-08-03,11 SERVICES,PROGRAMMES,BAE SYSTEMS APPLIED INTELLIGENCE LIMITED,470158,20636,GB641407169
BEIS,Met Office,2022-08-03,11 SERVICES,PROGRAMMES,BAE SYSTEMS APPLIED INTELLIGENCE LIMITED,470158,20934,GB641407169
BEIS,Met Office,2022-08-03,11 SERVICES,PROGRAMMES,BAE SYSTEMS APPLIED INTELLIGENCE LIMITED,470158,15946,GB641407169
BEIS,Met Office,2022-08-03,11 SERVICES,PROGRAMMES,BAE SYSTEMS APPLIED INTELLIGENCE LIMITED,470158,20049.75,GB641407169
BEIS,Met Office,2022-08-03,11 SERVICES,PROGRAMMES,BAE SYSTEMS APPLIED INTELLIGENCE LIMITED,470158,3779.75,GB641407169
BEIS,Met Office,2022-08-03,11 SERVICES,PROGRAMMES,BAE SYSTEMS APPLIED INTELLIGENCE LIMITED,470158,13860,GB641407169
BEIS,Met Office,2022-08-03,11 SERVICES,PROGRAMMES,BAE SYSTEMS APPLIED INTELLIGENCE LIMITED,470158,1163,GB641407169
BEIS,Met Office,2022-08-03,11 SERVICES,PROGRAMMES,BAE SYSTEMS APPLIED INTELLIGENCE LIMITED,470158,24423,GB641407169
BEIS,Met Office,2022-08-03,11 SERVICES,PROGRAMMES,BAE SYSTEMS APPLIED INTELLIGENCE LIMITED,470158,16415,GB641407169
BEIS,Met Office,2022-08-03,11 SERVICES,PROGRAMMES,BAE SYSTEMS APPLIED INTELLIGENCE LIMITED,470159,4869,GB641407169
BEIS,Met Office,2022-08-04,11 SERVICES,CHIEF FINANCIAL OFFICER,POSTURITE (UK) LTD,470163,269.27,583565114
BEIS,Met Office,2022-08-04,11 SERVICES,CHIEF FINANCIAL OFFICER,POSTURITE (UK) LTD,470164,282.66,583565114
BEIS,Met Office,2022-08-04,11 SERVICES,CHIEF FINANCIAL OFFICER,POSTURITE (UK) LTD,470165,816.95,583565114
BEIS,Met Office,2022-08-01,STOCK,SERVICES,Campbell Scientific Ltd,470188,0,428453933
BEIS,Met Office,2022-08-01,TRADE CREDITORS,SERVICES,Campbell Scientific Ltd,470188,3614.4,428453933
BEIS,Met Office,2022-08-01,11 SERVICES,SERVICES,Campbell Scientific Ltd,470188,90,428453933
BEIS,Met Office,2022-08-01,11 SERVICES,SERVICES,LONDON UNIVERSITIES PURCHASING CONSORTIUM,470242,4725,-
BEIS,Met Office,2022-08-01,11 SERVICES,SERVICES,LONDON UNIVERSITIES PURCHASING CONSORTIUM,470243,-1134,-
BEIS,Met Office,2022-08-01,11 SERVICES,PROGRAMMES,University Of Exeter,470244,164860,142047795
BEIS,Met Office,2022-08-01,11 SERVICES,PROGRAMMES,University Of Exeter,470245,32972,142047795
BEIS,Met Office,2022-08-04,11 SERVICES,CHIEF FINANCIAL OFFICER,POSTURITE (UK) LTD,470249,50,583565114
BEIS,Met Office,2022-08-01,06 ACCOMMODATION,CHIEF FINANCIAL OFFICER,CBRE MANAGED SERVICES LTD,470255,21673.82,853936883
BEIS,Met Office,2022-08-16,13 MISCELLANEOUS,SCIENCE,ARTHUR J. GALLAGHER INSURANCE BROKERS LIMITED,470260,2500,GB484746209
BEIS,Met Office,2022-08-01,11 SERVICES,OFFICE OF THE CEO,OSBORNE CLARKE LLP,470272,14000,GB138187353
BEIS,Met Office,2022-08-04,11 SERVICES,SERVICES,VOLKSWAGEN GROUP LEASING,470274,3697.1,BG745963883
BEIS,Met Office,2022-08-01,06 ACCOMMODATION,CHIEF FINANCIAL OFFICER,FIFTY2 CONSULTANCY LTD,470278,1247.4,328 9602 77
BEIS,Met Office,2022-08-02,13 MISCELLANEOUS,OFFICE OF THE CEO,DILIGENT BOARDBOOKS LIMITED,470279,41506,929451011
BEIS,Met Office,2022-08-02,13 MISCELLANEOUS,OFFICE OF THE CEO,DILIGENT BOARDBOOKS LIMITED,470280,-2186.71,929451011
BEIS,Met Office,2022-08-08,13 MISCELLANEOUS,SERVICES,DHL GLOBAL FORWARDING (UK) LTD,470281,12779.38,745260438
BEIS,Met Office,2022-08-04,11 SERVICES,CHIEF FINANCIAL OFFICER,POSTURITE (UK) LTD,470285,820.91,583565114
BEIS,Met Office,2022-08-02,11 SERVICES,CHIEF FINANCIAL OFFICER,TELEFONICA O2 UK LIMITED,470287,50.9,778603785
BEIS,Met Office,2022-08-01,06 ACCOMMODATION,CHIEF FINANCIAL OFFICER,WEST LANCASHIRE BOROUGH COUNCIL,470332,132.16,-
BEIS,Met Office,2022-08-01,11 SERVICES,CHIEF FINANCIAL OFFICER,LICENCE BUREAU LTD,470333,128,820219467
BEIS,Met Office,2022-08-08,06 ACCOMMODATION,CHIEF FINANCIAL OFFICER,EDF ENERGY CUSTOMERS PLC,470334,-123270.5,523041202
BEIS,Met Office,2022-08-08,06 ACCOMMODATION,CHIEF FINANCIAL OFFICER,EDF ENERGY CUSTOMERS PLC,470335,123559.39,523041202
BEIS,Met Office,2022-08-08,06 ACCOMMODATION,CHIEF FINANCIAL OFFICER,EDF ENERGY CUSTOMERS PLC,470336,-188344.82,523041202
BEIS,Met Office,2022-08-08,06 ACCOMMODATION,CHIEF FINANCIAL OFFICER,EDF ENERGY CUSTOMERS PLC,470337,183278.37,523041202
BEIS,Met Office,2022-08-04,11 SERVICES,SCIENCE,WT CONSULTANCY (SW) LTD,470338,1650,223 4662 25
BEIS,Met Office,2022-08-01,11 SERVICES,PEOPLE,HOPSCOTCH CONSULTING,470339,11210,102099056
BEIS,Met Office,2022-08-01,06 ACCOMMODATION,CHIEF FINANCIAL OFFICER,Belfast International Airport Ltd,470340,2777.94,617777601
BEIS,Met Office,2022-08-02,COMPUTER SOFTWARE,SERVICES,NOMENSA,470341,7571,GB771727411
BEIS,Met Office,2022-08-03,STOCK,SERVICES,Campbell Scientific Ltd,470344,0,428453933
BEIS,Met Office,2022-08-03,STOCK,SERVICES,Campbell Scientific Ltd,470344,0,428453933
BEIS,Met Office,2022-08-03,TRADE CREDITORS,SERVICES,Campbell Scientific Ltd,470344,3159,428453933
BEIS,Met Office,2022-08-03,TRADE CREDITORS,SERVICES,Campbell Scientific Ltd,470344,1029.6,428453933
BEIS,Met Office,2022-08-03,08 SOFTWARE LICENCES,SERVICES,USERZOOM,470345,128850,GB977281769
BEIS,Met Office,2022-08-03,06 ACCOMMODATION,CHIEF FINANCIAL OFFICER,LISNEY LIMITED,470346,1750,-
BEIS,Met Office,2022-08-04,11 SERVICES,SERVICES,Public Health England,470347,468,155579377
BEIS,Met Office,2022-08-02,06 ACCOMMODATION,CHIEF FINANCIAL OFFICER,OCS Group UK Limited,470348,110148.22,GB238034379
BEIS,Met Office,2022-08-02,06 ACCOMMODATION,CHIEF FINANCIAL OFFICER,OCS Group UK Limited,470348,61420.63,GB238034379
BEIS,Met Office,2022-08-10,11 SERVICES,MARKETS,BEIS,470349,-12066,888825550
BEIS,Met Office,2022-08-03,11 SERVICES,CHIEF FINANCIAL OFFICER,CABINET OFFICE - COF LEAD ACCOUNT,470350,82000,-
BEIS,Met Office,2022-08-01,06 ACCOMMODATION,CHIEF FINANCIAL OFFICER,CBRE LTD,470351,4750,GB 736 3179 23
BEIS,Met Office,2022-08-03,11 SERVICES,PEOPLE,MOMENTUM INCORPORATED,470352,6660,598958541
BEIS,Met Office,2022-08-18,11 SERVICES,CHIEF FINANCIAL OFFICER,TENDER VICTORY,470353,1725,245 1698 90
BEIS,Met Office,2022-08-01,13 MISCELLANEOUS,CHIEF FINANCIAL OFFICER,EDEN SPRINGS UK LTD,470354,632.88,232160411
BEIS,Met Office,2022-08-02,06 ACCOMMODATION,CHIEF FINANCIAL OFFICER,TENNIE FACILITIES PROPERTY MANAGEMENT LTD,470355,186.43,982055803
BEIS,Met Office,2022-08-04,11 SERVICES,PEOPLE,CALM WATERS COUNSELLING,470379,80,-
BEIS,Met Office,2022-08-05,11 SERVICES,CHIEF FINANCIAL OFFICER,POSTURITE (UK) LTD,470383,50,583565114
BEIS,Met Office,2022-08-03,11 SERVICES,MARKETS,ADOPSTAR,470384,1250,115036848
BEIS,Met Office,2022-08-02,03 STAFF COSTS T&S,CHIEF FINANCIAL OFFICER,ENTERPRISE RENT A CAR UK LTD,470385,1525.02,215557314
BEIS,Met Office,2022-08-09,08 SOFTWARE LICENCES,TECHNOLOGY AND CIO,PRESENTATION CARTOGRAPHY LTD,470386,6819,-
BEIS,Met Office,2022-08-09,08 SOFTWARE LICENCES,TECHNOLOGY AND CIO,PRESENTATION CARTOGRAPHY LTD,470386,39254,-
BEIS,Met Office,2022-08-09,08 SOFTWARE LICENCES,TECHNOLOGY AND CIO,PRESENTATION CARTOGRAPHY LTD,470386,7231,-
BEIS,Met Office,2022-08-09,08 SOFTWARE LICENCES,TECHNOLOGY AND CIO,PRESENTATION CARTOGRAPHY LTD,470387,8032,-
BEIS,Met Office,2022-08-09,08 SOFTWARE LICENCES,TECHNOLOGY AND CIO,PRESENTATION CARTOGRAPHY LTD,470387,1937,-
BEIS,Met Office,2022-08-03,11 SERVICES,PEOPLE,CIPHR,470388,7875,242661124
BEIS,Met Office,2022-08-17,06 ACCOMMODATION,CHIEF FINANCIAL OFFICER,JAMES & MARCIA BENJAMIN,470389,520,-
BEIS,Met Office,2022-08-03,06 ACCOMMODATION,CHIEF FINANCIAL OFFICER,Npl Management Ltd,470390,1100,207523388
BEIS,Met Office,2022-08-02,13 MISCELLANEOUS,PEOPLE,EDENRED - CHILDCARE VOUCHERS,470391,11413,649 503 520
BEIS,Met Office,2022-08-04,11 SERVICES,PEOPLE,TP HEALTH LTD,470395,88,883064608
BEIS,Met Office,2022-08-09,11 SERVICES,SERVICES,FLYFORM LTD,470396,9203.75,237333808
BEIS,Met Office,2022-08-05,11 SERVICES,TECHNOLOGY AND CIO,NEXUS OPEN SYSTEMS LTD,470397,20600,723221673
BEIS,Met Office,2022-08-03,11 SERVICES,TECHNOLOGY AND CIO,SSE CONTRACTING LTD,470398,10912.87,382894546
BEIS,Met Office,2022-08-04,06 ACCOMMODATION,CHIEF FINANCIAL OFFICER,South West Water Ltd,470399,872.76,236873674
BEIS,Met Office,2022-08-05,11 SERVICES,TECHNOLOGY AND CIO,NEXUS OPEN SYSTEMS LTD,470400,9999,723221673
BEIS,Met Office,2022-08-03,06 ACCOMMODATION,CHIEF FINANCIAL OFFICER,MOUNT CHARLES GROUP LTD,470402,576.36,517116274
BEIS,Met Office,2022-08-03,03 STAFF COSTS T&S,CHIEF FINANCIAL OFFICER,ALLSTAR BUSINESS SOLUTIONS LTD,470403,3770.48,747880191
BEIS,Met Office,2022-08-03,13 MISCELLANEOUS,CHIEF FINANCIAL OFFICER,NORSCOTT VENDING SERVICES LTD,470405,85,751402071
BEIS,Met Office,2022-08-10,11 SERVICES,TECHNOLOGY AND CIO,WT CONSULTANCY (SW) LTD,470406,875,223 4662 25
BEIS,Met Office,2022-08-09,11 SERVICES,SERVICES,SOFTWIRE TECHNOLOGY LIMITED,470407,4200,752 1253 57
BEIS,Met Office,2022-08-03,11 SERVICES,SERVICES,Boc Ltd,470408,10715.45,226556555
BEIS,Met Office,2022-08-03,11 SERVICES,MARKETS,ULTRA ELECTRONICS LTD NUCLEAR CONTROL SYSTEMS,470409,4926.81,123340754
BEIS,Met Office,2022-08-03,11 SERVICES,MARKETS,Esri (Uk) Ltd,470410,7000,787430791
BEIS,Met Office,2022-08-03,11 SERVICES,MARKETS,University Of Leeds,470411,3342.27,613451470
BEIS,Met Office,2022-08-03,13 MISCELLANEOUS,CHIEF FINANCIAL OFFICER,ANTRIM HILLS SPRING WATER CO LTD,470412,27,517173455
BEIS,Met Office,2022-08-05,08 SOFTWARE LICENCES,TECHNOLOGY AND CIO,SPECIALIST COMPUTER CENTRES,470413,368.66,313651680
BEIS,Met Office,2022-08-05,08 SOFTWARE LICENCES,TECHNOLOGY AND CIO,SPECIALIST COMPUTER CENTRES,470414,113.68,313651680
BEIS,Met Office,2022-08-04,11 SERVICES,PEOPLE,ACTIVE LEARNING TEAM LTD,470415,1400,-
BEIS,Met Office,2022-08-08,11 SERVICES,CHIEF FINANCIAL OFFICER,MITIE SECURITY LTD,470416,1388.88,416706654
BEIS,Met Office,2022-08-08,06 ACCOMMODATION,CHIEF FINANCIAL OFFICER,MITIE SECURITY LTD,470417,1237.5,416706654
BEIS,Met Office,2022-08-04,06 ACCOMMODATION,CHIEF FINANCIAL OFFICER,BIDVEST NOONAN UK LTD,470418,1013.83,GB847176988
BEIS,Met Office,2022-08-02,08 SOFTWARE LICENCES,TECHNOLOGY AND CIO,BOXXE,470419,122539.22,734245248
BEIS,Met Office,2022-08-03,08 SOFTWARE LICENCES,TECHNOLOGY AND CIO,Ibm United Kingdom Ltd,470420,6875.8,107328000
BEIS,Met Office,2022-08-04,03 STAFF COSTS T&S,SERVICES,DBS FINANCE RECEIPTS CTS,470421,2409,888805068
BEIS,Met Office,2022-08-03,08 SOFTWARE LICENCES,TECHNOLOGY AND CIO,GOOGLE IRELAND LTD,470422,47.56,6388047V
BEIS,Met Office,2022-08-05,11 SERVICES,CHIEF FINANCIAL OFFICER,MITIE SECURITY LTD,470423,1256.4,416706654
BEIS,Met Office,2022-08-05,SOFTWARE LICENCES,CHIEF FINANCIAL OFFICER,ADVANCED BUSINESS SOLUTIONS LTD,470424,2550,927547983
BEIS,Met Office,2022-08-04,11 SERVICES,MARKETS,WORLDPAY LTD,470425,25.45,991280207
BEIS,Met Office,2022-08-09,STOCK,SERVICES,WESCOL LTD,470426,0,100293524
BEIS,Met Office,2022-08-09,TRADE CREDITORS,SERVICES,WESCOL LTD,470426,1149.92,100293524
BEIS,Met Office,2022-08-09,11 SERVICES,SERVICES,WESCOL LTD,470426,12,100293524
BEIS,Met Office,2022-08-05,10 EQUIPMENT MAINTENANCE,SERVICES,OVARRO TS LTD,470427,17825,648280518
BEIS,Met Office,2022-08-24,11 SERVICES,PROGRAMMES,FUNDACAO ARTHUR BERNARDES - FUNARBE,470428,5854.99,-
BEIS,Met Office,2022-08-03,11 SERVICES,CHIEF FINANCIAL OFFICER,Ashfords Llp,470453,1260,844502439
BEIS,Met Office,2022-08-10,11 SERVICES,MARKETS,INSTITUTE OF WATER MODELLING (IWM) BANGLADESH,470455,67728.34,0014051470101
BEIS,Met Office,2022-08-03,11 SERVICES,TECHNOLOGY AND CIO,WIREFAST LTD,470456,697.31,749536001
BEIS,Met Office,2022-08-03,11 SERVICES,TECHNOLOGY AND CIO,WIREFAST LTD,470457,1248.93,749536001
BEIS,Met Office,2022-08-03,11 SERVICES,TECHNOLOGY AND CIO,WIREFAST LTD,470458,1535.15,749536001
BEIS,Met Office,2022-08-04,08 SOFTWARE LICENCES,TECHNOLOGY AND CIO,Ibm United Kingdom Ltd,470459,6292.52,107328000
BEIS,Met Office,2022-08-09,08 SOFTWARE LICENCES,TECHNOLOGY AND CIO,SPECIALIST COMPUTER CENTRES,470460,113.68,313651680
BEIS,Met Office,2022-08-09,11 SERVICES,PROGRAMMES,SPECIALIST COMPUTER CENTRES,470461,9999.9,313651680
BEIS,Met Office,2022-08-04,13 MISCELLANEOUS,SCIENCE,University Of East Anglia,470462,333.34,595183505
BEIS,Met Office,2022-08-04,13 MISCELLANEOUS,SCIENCE,University Of East Anglia,470463,1000,595183505
BEIS,Met Office,2022-08-04,06 ACCOMMODATION,CHIEF FINANCIAL OFFICER,CARDIFF EXECUTIVE CENTRE LTD,470464,2470,864497378
BEIS,Met Office,2022-08-04,13 MISCELLANEOUS,CHIEF FINANCIAL OFFICER,CARDIFF EXECUTIVE CENTRE LTD,470465,1.57,864497378
BEIS,Met Office,2022-08-04,13 MISCELLANEOUS,SCIENCE,University Of Reading,470466,333.34,200012659
BEIS,Met Office,2022-08-04,06 ACCOMMODATION,CHIEF FINANCIAL OFFICER,FAIR ISLE ELECTRICITY COMPANY LTD,470467,102.44,774548783
BEIS,Met Office,2022-08-03,03 STAFF COSTS T&S,SERVICES,CHARLIE'S TRAVEL LTD,470468,178.33,783848277
BEIS,Met Office,2022-08-03,03 STAFF COSTS T&S,SERVICES,CHARLIE'S TRAVEL LTD,470468,126.38,783848277
BEIS,Met Office,2022-08-03,03 STAFF COSTS T&S,SERVICES,CHARLIE'S TRAVEL LTD,470468,1058.45,783848277
BEIS,Met Office,2022-08-04,12 INTERNATIONAL,MARKETS,WORLD METEOROLOGICAL ORGANIZATION,470469,713.2,-
BEIS,Met Office,2022-08-05,11 SERVICES,MARKETS,CACI LTD,470470,90789.89,380609841
BEIS,Met Office,2022-08-09,INFORMATION TECHNOLOGY,SERVICES,INMARSAT SOLUTIONS (CANADA) INC,470471,1656.9,766144223
BEIS,Met Office,2022-08-05,11 SERVICES,PROGRAMMES,ROWE IT LTD,470472,36731.25,924964394
BEIS,Met Office,2022-08-04,11 SERVICES,PEOPLE,TP HEALTH LTD,470473,2010,883064608
BEIS,Met Office,2022-08-04,13 MISCELLANEOUS,SCIENCE,University Of Reading,470475,-333.33,200012659
BEIS,Met Office,2022-08-09,11 SERVICES,PROGRAMMES,ROWE IT LTD,470477,84097.5,924964394
BEIS,Met Office,2022-08-04,11 SERVICES,PROGRAMMES,ROWE IT LTD,470478,15750,924964394
BEIS,Met Office,2022-08-04,11 SERVICES,SERVICES,FLYFORM LTD,470479,3482.5,237333808
BEIS,Met Office,2022-08-09,11 SERVICES,PROGRAMMES,FLYFORM LTD,470480,7875,237333808
BEIS,Met Office,2022-08-09,11 SERVICES,PROGRAMMES,FLYFORM LTD,470481,59924.25,237333808
BEIS,Met Office,2022-08-09,11 SERVICES,SERVICES,FLYFORM LTD,470482,26715.75,237333808
BEIS,Met Office,2022-08-08,06 ACCOMMODATION,CHIEF FINANCIAL OFFICER,EDF ENERGY CUSTOMERS PLC,470509,480844.93,523041202
BEIS,Met Office,2022-08-08,06 ACCOMMODATION,CHIEF FINANCIAL OFFICER,EDF ENERGY CUSTOMERS PLC,470510,182565.5,523041202
BEIS,Met Office,2022-08-08,06 ACCOMMODATION,CHIEF FINANCIAL OFFICER,EDF ENERGY CUSTOMERS PLC,470511,159426.52,523041202
BEIS,Met Office,2022-08-05,06 ACCOMMODATION,CHIEF FINANCIAL OFFICER,POWER NI ENERGY LTD,470512,444.07,617518142
BEIS,Met Office,2022-08-04,11 SERVICES,TECHNOLOGY AND CIO,AKAMAI TECHNOLOGIES LTD,470513,25836.75,745091237
BEIS,Met Office,2022-08-04,11 SERVICES,TECHNOLOGY AND CIO,AKAMAI TECHNOLOGIES LTD,470513,4921.28,745091237
BEIS,Met Office,2022-08-04,04 CONTRACTORS,PEOPLE,MATRIX SCM LIMITED,470514,267006,249 5734 68
BEIS,Met Office,2022-08-04,13 MISCELLANEOUS,SERVICES,NORSCOTT VENDING SERVICES LTD,470515,41.7,751402071
BEIS,Met Office,2022-08-04,13 MISCELLANEOUS,SERVICES,DBS FINANCE RECEIPTS CTS,470516,30,888805068
BEIS,Met Office,2022-08-05,11 SERVICES,SCIENCE,BRUNEL EUROPEAN LTD,470517,7995,109714516
BEIS,Met Office,2022-08-05,11 SERVICES,SCIENCE,BRUNEL EUROPEAN LTD,470517,650,109714516
BEIS,Met Office,2022-08-05,11 SERVICES,CHIEF FINANCIAL OFFICER,Vodafone Limited,470530,10.21,569953277
BEIS,Met Office,2022-08-05,11 SERVICES,CHIEF FINANCIAL OFFICER,Vodafone Limited,470531,10.21,569953277
BEIS,Met Office,2022-08-05,11 SERVICES,CHIEF FINANCIAL OFFICER,Vodafone Limited,470532,377.73,569953277
BEIS,Met Office,2022-08-05,11 SERVICES,CHIEF FINANCIAL OFFICER,Vodafone Limited,470533,773.94,569953277
BEIS,Met Office,2022-08-05,11 SERVICES,CHIEF FINANCIAL OFFICER,Vodafone Limited,470534,616.68,569953277
BEIS,Met Office,2022-08-08,11 SERVICES,CHIEF FINANCIAL OFFICER,Vodafone Limited,470535,4220.63,569953277
BEIS,Met Office,2022-08-05,11 SERVICES,PEOPLE,HEALTH ASSURED LIMITED,470537,1120,927 5242 17
BEIS,Met Office,2022-08-05,06 ACCOMMODATION,CHIEF FINANCIAL OFFICER,NEDERMAN LTD,470540,259,108222647
BEIS,Met Office,2022-08-31,08 SOFTWARE LICENCES,TECHNOLOGY AND CIO,"IBL SOFTWARE ENGINEERING, SPOL S.R.O.",470541,7731.55,SK2020241883
BEIS,Met Office,2022-08-31,08 SOFTWARE LICENCES,TECHNOLOGY AND CIO,"IBL SOFTWARE ENGINEERING, SPOL S.R.O.",470541,29787.2,SK2020241883
BEIS,Met Office,2022-08-05,11 SERVICES,PROGRAMMES,ROWE IT LTD,470542,12021.44,924964394
BEIS,Met Office,2022-08-05,11 SERVICES,PROGRAMMES,ROWE IT LTD,470542,3005.36,924964394
BEIS,Met Office,2022-08-05,11 SERVICES,PROGRAMMES,ROWE IT LTD,470542,37566.99,924964394
BEIS,Met Office,2022-08-05,11 SERVICES,PROGRAMMES,ROWE IT LTD,470542,60107.18,924964394
BEIS,Met Office,2022-08-05,11 SERVICES,PROGRAMMES,ROWE IT LTD,470542,37566.99,924964394
BEIS,Met Office,2022-08-05,03 STAFF COSTS T&S,CHIEF FINANCIAL OFFICER,APPLE CENTRAL TAXIS,470543,518.5,449238720
BEIS,Met Office,2022-08-05,11 SERVICES,MARKETS,Cgi It Uk Limited,470544,183071.45,232615194
BEIS,Met Office,2022-08-05,11 SERVICES,CHIEF FINANCIAL OFFICER,Vodafone Limited,470545,411.73,569953277
BEIS,Met Office,2022-08-08,11 SERVICES,MARKETS,SPOKE (INTERACTIVE) LTD,470546,700,840156451
BEIS,Met Office,2022-08-09,11 SERVICES,CHIEF FINANCIAL OFFICER,POSTURITE (UK) LTD,470548,23.59,583565114
BEIS,Met Office,2022-08-05,11 SERVICES,PEOPLE,THE MYERS BRIGGS COMPANY LTD,470550,578,490808231
BEIS,Met Office,2022-08-05,CYCLESCHEME,OTHER,EDENRED UK (CYCLESCHEME),470551,0,649 503 520
BEIS,Met Office,2022-08-05,CYCLESCHEME,OTHER,EDENRED UK (CYCLESCHEME),470551,12466.35,649 503 520
BEIS,Met Office,2022-08-05,13 MISCELLANEOUS,CHIEF FINANCIAL OFFICER,University Of Reading,470553,10.32,200012659
BEIS,Met Office,2022-08-10,06 ACCOMMODATION,CHIEF FINANCIAL OFFICER,ABOVE THE REST COMMERCIAL CLEANING LTD,470612,565,166969348
BEIS,Met Office,2022-08-12,11 SERVICES,SERVICES,ADAM PHONES LTD,470613,88.35,538877093
BEIS,Met Office,2022-08-09,06 ACCOMMODATION,CHIEF FINANCIAL OFFICER,CALOR GAS LIMITED,470614,19.61,207610984
BEIS,Met Office,2022-08-09,06 ACCOMMODATION,CHIEF FINANCIAL OFFICER,CALOR GAS LIMITED,470615,34.25,207610984
BEIS,Met Office,2022-08-09,06 ACCOMMODATION,CHIEF FINANCIAL OFFICER,CALOR GAS LIMITED,470616,49.18,207610984
BEIS,Met Office,2022-08-09,06 ACCOMMODATION,CHIEF FINANCIAL OFFICER,CALOR GAS LIMITED,470617,34.25,207610984
BEIS,Met Office,2022-08-09,06 ACCOMMODATION,CHIEF FINANCIAL OFFICER,CALOR GAS LIMITED,470618,34.25,207610984
BEIS,Met Office,2022-08-09,06 ACCOMMODATION,CHIEF FINANCIAL OFFICER,CALOR GAS LIMITED,470619,34.25,207610984
BEIS,Met Office,2022-08-09,06 ACCOMMODATION,CHIEF FINANCIAL OFFICER,CALOR GAS LIMITED,470621,34.25,207610984
BEIS,Met Office,2022-08-09,06 ACCOMMODATION,CHIEF FINANCIAL OFFICER,CALOR GAS LIMITED,470622,34.25,207610984
BEIS,Met Office,2022-08-09,06 ACCOMMODATION,CHIEF FINANCIAL OFFICER,BUSINESS SUPPORT CENTRE LTD,470623,24.17,927365208
BEIS,Met Office,2022-08-10,11 SERVICES,SERVICES,MADE TECH,470624,81678.57,938565184
BEIS,Met Office,2022-08-10,11 SERVICES,SERVICES,MADE TECH,470625,23276.79,938565184
BEIS,Met Office,2022-08-10,06 ACCOMMODATION,CHIEF FINANCIAL OFFICER,CBRE MANAGED SERVICES LTD,470626,43637,853936883
BEIS,Met Office,2022-08-11,13 MISCELLANEOUS,PEOPLE,HEALTH MANAGEMENT LTD,470627,306.04,792250621
BEIS,Met Office,2022-08-08,11 SERVICES,SCIENCE,MARLDON MARQUEES LTD,470629,3000,754925207
BEIS,Met Office,2022-08-09,11 SERVICES,CHIEF FINANCIAL OFFICER,POSTURITE (UK) LTD,470632,50,583565114
BEIS,Met Office,2022-08-08,11 SERVICES,PROGRAMMES,Dstl,470633,7127.23,888805166
BEIS,Met Office,2022-08-09,03 STAFF COSTS T&S,SERVICES,AIRPORT CAR RENTALS LTD,470639,320,-
BEIS,Met Office,2022-08-10,06 ACCOMMODATION,CHIEF FINANCIAL OFFICER,Biffa Waste Services Ltd,470640,224.5,537911627
BEIS,Met Office,2022-08-10,11 SERVICES,PROGRAMMES,SCIENCE & TECHNOLOGY FACILITIES COUNCIL,470641,12500,287461957
BEIS,Met Office,2022-08-09,03 STAFF COSTS T&S,CHIEF FINANCIAL OFFICER,ENTERPRISE RENT A CAR UK LTD,470642,1857.15,215557314
BEIS,Met Office,2022-08-09,INFORMATION TECHNOLOGY,SERVICES,COMPUTACENTER (UK) LTD,470644,14357.06,490334648
BEIS,Met Office,2022-08-11,11 SERVICES,CHIEF FINANCIAL OFFICER,GB GROUP PLC,470646,542.72,539716218
BEIS,Met Office,2022-08-09,06 ACCOMMODATION,CHIEF FINANCIAL OFFICER,D&G OFFICE SERVICES LTD,470647,-282,272997547
BEIS,Met Office,2022-08-11,11 SERVICES,MARKETS,BJSS LIMITED,470648,12975,613295452
BEIS,Met Office,2022-08-11,11 SERVICES,CHIEF FINANCIAL OFFICER,EDSON TIGER LTD,470649,1500,166910983
BEIS,Met Office,2022-08-11,11 SERVICES,MARKETS,BJSS LIMITED,470650,15800,613295452
BEIS,Met Office,2022-08-11,11 SERVICES,PROGRAMMES,BJSS LIMITED,470651,93907.97,613295452
BEIS,Met Office,2022-08-09,03 STAFF COSTS T&S,SERVICES,FALKLAND ISLAND COMPANY LTD,470652,700,N/A
BEIS,Met Office,2022-08-09,03 STAFF COSTS T&S,SERVICES,FALKLAND ISLAND COMPANY LTD,470653,700,N/A
BEIS,Met Office,2022-08-09,03 STAFF COSTS T&S,SERVICES,FALKLAND ISLAND COMPANY LTD,470654,700,N/A
BEIS,Met Office,2022-08-10,08 SOFTWARE LICENCES,SERVICES,SOUTRON GLOBAL INC,470655,5865,863868129
BEIS,Met Office,2022-08-09,13 MISCELLANEOUS,PEOPLE,RESTORE RECORDS MANAGEMENT,470656,13.18,843 863011
BEIS,Met Office,2022-08-10,11 SERVICES,MARKETS,ACCELERATION EMARKETING,470657,5204.72,848940776
BEIS,Met Office,2022-08-10,06 ACCOMMODATION,CHIEF FINANCIAL OFFICER,RIVER RIDGE,470658,146.06,176286083
BEIS,Met Office,2022-08-10,13 MISCELLANEOUS,PEOPLE,EDENRED I&M (IRS VOUCHERS),470659,38647.1,649 503 520
BEIS,Met Office,2022-08-11,11 SERVICES,PROGRAMMES,University Of Reading,470660,41640,200012659
BEIS,Met Office,2022-08-11,11 SERVICES,PEOPLE,RUNTIME COLLECTIVE LTD T/A BRANDWATCH,470670,6174,754750710
BEIS,Met Office,2022-08-24,11 SERVICES,CHIEF FINANCIAL OFFICER,EXPONENTIAL-E,470671,652.37,GB798572653
BEIS,Met Office,2022-08-10,11 SERVICES,CHIEF FINANCIAL OFFICER,ANVIL MOBILE LIMITED,470685,370.95,981686175
BEIS,Met Office,2022-08-12,CYCLESCHEME,OTHER,EDENRED EB (SHOPPING VOUCHERS),470686,1123,649 503 520
BEIS,Met Office,2022-08-12,CYCLESCHEME,OTHER,EDENRED EB (SHOPPING VOUCHERS),470687,403,649 503 520
BEIS,Met Office,2022-08-11,05 CONSULTANTS,OFFICE OF THE CEO,THE LEGAL DIRECTOR,470688,120,899 338941
BEIS,Met Office,2022-08-10,11 SERVICES,MARKETS,BEIS,470690,540574.55,888825550
BEIS,Met Office,2022-08-10,08 SOFTWARE LICENCES,CHIEF FINANCIAL OFFICER,TIMEWATCH PLC,470691,4812.5,461555250
BEIS,Met Office,2022-08-10,11 SERVICES,CHIEF FINANCIAL OFFICER,GAMMA TELECOM LTD,470692,120.17,823820344
BEIS,Met Office,2022-08-10,11 SERVICES,CHIEF FINANCIAL OFFICER,GAMMA TELECOM LTD,470692,27455.26,823820344
BEIS,Met Office,2022-08-23,11 SERVICES,PROGRAMMES,GAMMA TELECOM LTD,470693,4409.77,823820344
BEIS,Met Office,2022-08-23,11 SERVICES,PROGRAMMES,GAMMA TELECOM LTD,470693,54,823820344
BEIS,Met Office,2022-08-23,11 SERVICES,PROGRAMMES,GAMMA TELECOM LTD,470693,38.14,823820344
BEIS,Met Office,2022-08-15,11 SERVICES,PROGRAMMES,BAE SYSTEMS APPLIED INTELLIGENCE LIMITED,470694,11361,GB641407169
BEIS,Met Office,2022-08-11,11 SERVICES,CHIEF FINANCIAL OFFICER,TELEFONICA O2 UK LIMITED,470695,6258.37,778603785
BEIS,Met Office,2022-08-12,11 SERVICES,CHIEF FINANCIAL OFFICER,POSTURITE (UK) LTD,470696,232.53,583565114
BEIS,Met Office,2022-08-12,11 SERVICES,CHIEF FINANCIAL OFFICER,POSTURITE (UK) LTD,470697,116.53,583565114
BEIS,Met Office,2022-08-31,11 SERVICES,CHIEF FINANCIAL OFFICER,SWISSCOM (SCHWEIZ) AG,470698,95.23,-
BEIS,Met Office,2022-08-11,06 ACCOMMODATION,CHIEF FINANCIAL OFFICER,South West Water Ltd,470699,5256.7,236873674
BEIS,Met Office,2022-08-10,06 ACCOMMODATION,CHIEF FINANCIAL OFFICER,South West Water Ltd,470700,588.91,236873674
BEIS,Met Office,2022-08-10,06 ACCOMMODATION,CHIEF FINANCIAL OFFICER,South West Water Ltd,470701,1113.83,236873674
BEIS,Met Office,2022-08-16,11 SERVICES,MARKETS,WORLDPAY (UK) LTD,470702,66.91,991280207
BEIS,Met Office,2022-08-15,11 SERVICES,TECHNOLOGY AND CIO,LRQA LTD,470723,5100,821176647
BEIS,Met Office,2022-08-12,11 SERVICES,SERVICES,ADAM PHONES LTD,470724,88.35,538877093
BEIS,Met Office,2022-08-10,11 SERVICES,CHIEF FINANCIAL OFFICER,JERSEY TELECOM,470725,1284.32,NOTVATREG
BEIS,Met Office,2022-08-11,10 EQUIPMENT MAINTENANCE,SERVICES,QROMETRIC LIMITED,470728,260,203980028
BEIS,Met Office,2022-08-11,10 EQUIPMENT MAINTENANCE,SERVICES,QROMETRIC LIMITED,470728,600,203980028
BEIS,Met Office,2022-08-11,10 EQUIPMENT MAINTENANCE,SERVICES,QROMETRIC LIMITED,470728,1320,203980028
BEIS,Met Office,2022-08-11,10 EQUIPMENT MAINTENANCE,SERVICES,QROMETRIC LIMITED,470728,160,203980028
BEIS,Met Office,2022-08-11,10 EQUIPMENT MAINTENANCE,SERVICES,QROMETRIC LIMITED,470728,120,203980028
BEIS,Met Office,2022-08-11,10 EQUIPMENT MAINTENANCE,SERVICES,QROMETRIC LIMITED,470728,120,203980028
BEIS,Met Office,2022-08-25,11 SERVICES,CHIEF FINANCIAL OFFICER,BT CONFERENCING,470753,57.34,245719348
BEIS,Met Office,2022-08-12,06 ACCOMMODATION,CHIEF FINANCIAL OFFICER,SHETLAND CLEANING SERVICES,470754,769.57,430028404
BEIS,Met Office,2022-08-23,11 SERVICES,PROGRAMMES,University Of Exeter,470756,33333,142047795
BEIS,Met Office,2022-08-11,03 STAFF COSTS T&S,OFFICE OF THE CEO,HAYMARKET MEDIA GROUP LTD,470757,545,GB232584272
BEIS,Met Office,2022-08-15,11 SERVICES,TECHNOLOGY AND CIO,NCC SERVICES  LIMITED,470759,1590,732334556
BEIS,Met Office,2022-08-12,04 CONTRACTORS,PEOPLE,MATRIX SCM LIMITED,470760,225692.04,249 5734 68
BEIS,Met Office,2022-08-15,08 SOFTWARE LICENCES,PEOPLE,CATALYST IT,470761,2738.33,978169262
BEIS,Met Office,2022-08-15,11 SERVICES,PROGRAMMES,BAE SYSTEMS APPLIED INTELLIGENCE LIMITED,470762,24964,GB641407169
BEIS,Met Office,2022-08-15,11 SERVICES,PROGRAMMES,BAE SYSTEMS APPLIED INTELLIGENCE LIMITED,470762,13132,GB641407169
BEIS,Met Office,2022-08-15,11 SERVICES,PROGRAMMES,BAE SYSTEMS APPLIED INTELLIGENCE LIMITED,470762,13585.63,GB641407169
BEIS,Met Office,2022-08-15,11 SERVICES,PROGRAMMES,BAE SYSTEMS APPLIED INTELLIGENCE LIMITED,470762,8442,GB641407169
BEIS,Met Office,2022-08-15,11 SERVICES,PROGRAMMES,BAE SYSTEMS APPLIED INTELLIGENCE LIMITED,470762,22678.5,GB641407169
BEIS,Met Office,2022-08-15,11 SERVICES,PROGRAMMES,BAE SYSTEMS APPLIED INTELLIGENCE LIMITED,470762,15008,GB641407169
BEIS,Met Office,2022-08-15,11 SERVICES,PROGRAMMES,BAE SYSTEMS APPLIED INTELLIGENCE LIMITED,470762,18760,GB641407169
BEIS,Met Office,2022-08-15,11 SERVICES,PROGRAMMES,BAE SYSTEMS APPLIED INTELLIGENCE LIMITED,470762,13601,GB641407169
BEIS,Met Office,2022-08-15,11 SERVICES,PROGRAMMES,BAE SYSTEMS APPLIED INTELLIGENCE LIMITED,470762,13860,GB641407169
BEIS,Met Office,2022-08-15,11 SERVICES,PROGRAMMES,BAE SYSTEMS APPLIED INTELLIGENCE LIMITED,470762,22097,GB641407169
BEIS,Met Office,2022-08-15,06 ACCOMMODATION,CHIEF FINANCIAL OFFICER,SAFESTORE LTD,470763,2815.28,722887607
BEIS,Met Office,2022-08-18,11 SERVICES,CHIEF FINANCIAL OFFICER,ADT FIRE AND SECURITY PLC,470764,571.8,413633086
BEIS,Met Office,2022-08-18,11 SERVICES,CHIEF FINANCIAL OFFICER,TELEFONICA O2 UK LIMITED,470765,0,778603785
BEIS,Met Office,2022-08-18,11 SERVICES,CHIEF FINANCIAL OFFICER,TELEFONICA O2 UK LIMITED,470765,6022.08,778603785
BEIS,Met Office,2022-08-22,11 SERVICES,PEOPLE,SWANTECH LOGISTICS LTD,470766,900,769332401
BEIS,Met Office,2022-08-15,11 SERVICES,SERVICES,CLOUDREACH EUROPE LIMITED,470788,7300,978187168
BEIS,Met Office,2022-08-15,11 SERVICES,TECHNOLOGY AND CIO,CLOUDREACH EUROPE LIMITED,470789,5150,978187168
BEIS,Met Office,2022-08-19,PLANT AND EQUIPMENT,SERVICES,MANUPLAS,470790,2600,927222238
BEIS,Met Office,2022-08-15,06 ACCOMMODATION,CHIEF FINANCIAL OFFICER,BIDVEST NOONAN UK LTD,470791,457.31,GB847176988
BEIS,Met Office,2022-08-18,06 ACCOMMODATION,CHIEF FINANCIAL OFFICER,BIDVEST NOONAN UK LTD,470792,1013.83,GB847176988
BEIS,Met Office,2022-08-16,12 INTERNATIONAL,MARKETS,CROWN AGENTS BANK,470793,13307.61,-
BEIS,Met Office,2022-08-16,06 ACCOMMODATION,CHIEF FINANCIAL OFFICER,CELLNEX,470799,83.52,GB 843 8792 82
BEIS,Met Office,2022-08-16,11 SERVICES,CHIEF FINANCIAL OFFICER,SURE SOUTH ATLANTIC LTD,470800,2168.79,NOVATREG
BEIS,Met Office,2022-08-16,06 ACCOMMODATION,CHIEF FINANCIAL OFFICER,TOTAL GAS & POWER LIMITED,470801,365.65,689638949
BEIS,Met Office,2022-08-16,11 SERVICES,CHIEF FINANCIAL OFFICER,SURE SOUTH ATLANTIC LTD (ST HELENA),470802,1650,30005
BEIS,Met Office,2022-08-18,11 SERVICES,CHIEF FINANCIAL OFFICER,DIGITAL COMMUNICATIONS SYSTEMS LIMITED,470803,1213,GB 556 1971 19
BEIS,Met Office,2022-08-15,03 STAFF COSTS T&S,CHIEF FINANCIAL OFFICER,ENTERPRISE RENT A CAR UK LTD,470804,2302.21,215557314
BEIS,Met Office,2022-08-15,03 STAFF COSTS T&S,SERVICES,CHARLIE'S TRAVEL LTD,470805,143.51,783848277
BEIS,Met Office,2022-08-16,06 ACCOMMODATION,CHIEF FINANCIAL OFFICER,ABOVE THE REST COMMERCIAL CLEANING LTD,470809,41,166969348
BEIS,Met Office,2022-08-17,06 ACCOMMODATION,CHIEF FINANCIAL OFFICER,APPLECROSS TRUST LTD,470810,864.72,596728869
BEIS,Met Office,2022-08-18,06 ACCOMMODATION,CHIEF FINANCIAL OFFICER,SHARED ACCESS LTD,470833,7759.29,920672730
BEIS,Met Office,2022-08-17,11 SERVICES,TECHNOLOGY AND CIO,CLOUDREACH EUROPE LIMITED,470834,4587.7,978187168
BEIS,Met Office,2022-08-17,11 SERVICES,PEOPLE,CIVICA UK LIMITED,470835,7503.5,391171065
BEIS,Met Office,2022-08-17,11 SERVICES,PEOPLE,CIVICA UK LIMITED,470836,6846,391171065
BEIS,Met Office,2022-08-18,03 STAFF COSTS T&S,MARKETS,SOLOMON & COMPANY (ST HELENA) PLC,470838,398.6,-
BEIS,Met Office,2022-08-18,06 ACCOMMODATION,CHIEF FINANCIAL OFFICER,TOP RANK CLEANING SERVICES LTD,470839,914,-
BEIS,Met Office,2022-08-18,06 ACCOMMODATION,CHIEF FINANCIAL OFFICER,TOP RANK CLEANING SERVICES LTD,470839,160,-
BEIS,Met Office,2022-08-17,03 STAFF COSTS T&S,CHIEF FINANCIAL OFFICER,ALLSTAR BUSINESS SOLUTIONS LTD,470840,2377.54,747880191
BEIS,Met Office,2022-08-22,07 EQUIPMENT,TECHNOLOGY AND CIO,COMPUTACENTER (UK) LTD,470841,9846.8,490334648
BEIS,Met Office,2022-08-22,07 EQUIPMENT,TECHNOLOGY AND CIO,COMPUTACENTER (UK) LTD,470842,6580.59,490334648
BEIS,Met Office,2022-08-18,11 SERVICES,SERVICES,Landmark Information Group Ltd,470843,186796.35,634509735
BEIS,Met Office,2022-08-19,11 SERVICES,PROGRAMMES,HOGAN LOVELLS INTERNATIONAL LLP,470845,14049.89,GB123371543
BEIS,Met Office,2022-08-19,11 SERVICES,CHIEF FINANCIAL OFFICER,INTEROUTE COMMUNICATIONS LIMITED,470847,7100,832 7071 39
BEIS,Met Office,2022-08-24,11 SERVICES,PROGRAMMES,Microsoft Ltd,470848,251018.36,724594615
BEIS,Met Office,2022-08-22,11 SERVICES,TECHNOLOGY AND CIO,BAE SYSTEMS APPLIED INTELLIGENCE LIMITED,470849,9196.95,GB641407169
BEIS,Met Office,2022-08-22,11 SERVICES,MARKETS,LHR BUSINESS SUPPORT CENTRE LTD,470850,187.95,927365404
BEIS,Met Office,2022-08-19,11 SERVICES,PROGRAMMES,University Of Oxford,470851,2500,125506730
BEIS,Met Office,2022-08-19,11 SERVICES,PROGRAMMES,UK ATOMIC ENERGY AUTHORITY,470852,15000,GB570101391
BEIS,Met Office,2022-08-18,08 SOFTWARE LICENCES,SERVICES,COGNIZANT WORLDWIDE LIMITED,470853,9977.25,123382928
BEIS,Met Office,2022-08-18,04 CONTRACTORS,PEOPLE,MATRIX SCM LIMITED,470864,189369.45,249 5734 68
BEIS,Met Office,2022-08-22,11 SERVICES,CHIEF FINANCIAL OFFICER,British Red Cross Society,470865,892,706926227
BEIS,Met Office,2022-08-18,13 MISCELLANEOUS,SERVICES,IMAGETEK SYSTEMS LTD,470866,3269.94,GB586331424
BEIS,Met Office,2022-08-22,INFORMATION TECHNOLOGY,PROGRAMMES,Campbell Scientific Ltd,470869,842.4,428453933
BEIS,Met Office,2022-08-22,INFORMATION TECHNOLOGY,PROGRAMMES,Campbell Scientific Ltd,470870,2565.1,428453933
BEIS,Met Office,2022-08-22,07 EQUIPMENT,SERVICES,Campbell Scientific Ltd,470870,1504.7,428453933
BEIS,Met Office,2022-08-23,INFORMATION TECHNOLOGY,PROGRAMMES,Campbell Scientific Ltd,470871,252,428453933
BEIS,Met Office,2022-08-23,11 SERVICES,PROGRAMMES,Campbell Scientific Ltd,470871,2173.5,428453933
BEIS,Met Office,2022-08-23,11 SERVICES,PROGRAMMES,Campbell Scientific Ltd,470871,1638,428453933
BEIS,Met Office,2022-08-22,11 SERVICES,TECHNOLOGY AND CIO,BAE SYSTEMS APPLIED INTELLIGENCE LIMITED,470873,11490.5,GB641407169
BEIS,Met Office,2022-08-22,11 SERVICES,TECHNOLOGY AND CIO,BAE SYSTEMS APPLIED INTELLIGENCE LIMITED,470874,11880,GB641407169
BEIS,Met Office,2022-08-22,11 SERVICES,TECHNOLOGY AND CIO,BAE SYSTEMS APPLIED INTELLIGENCE LIMITED,470875,8100,GB641407169
BEIS,Met Office,2022-08-22,11 SERVICES,TECHNOLOGY AND CIO,BAE SYSTEMS APPLIED INTELLIGENCE LIMITED,470876,12540,GB641407169
BEIS,Met Office,2022-08-22,11 SERVICES,TECHNOLOGY AND CIO,BAE SYSTEMS APPLIED INTELLIGENCE LIMITED,470877,10820,GB641407169
BEIS,Met Office,2022-08-22,11 SERVICES,TECHNOLOGY AND CIO,BAE SYSTEMS APPLIED INTELLIGENCE LIMITED,470878,11725,GB641407169
BEIS,Met Office,2022-08-22,11 SERVICES,TECHNOLOGY AND CIO,BAE SYSTEMS APPLIED INTELLIGENCE LIMITED,470879,8115,GB641407169
BEIS,Met Office,2022-08-22,11 SERVICES,TECHNOLOGY AND CIO,BAE SYSTEMS APPLIED INTELLIGENCE LIMITED,470880,13200,GB641407169
BEIS,Met Office,2022-08-22,11 SERVICES,PEOPLE,RUNTIME COLLECTIVE LTD T/A BRANDWATCH,470881,6174,754750710
BEIS,Met Office,2022-08-22,11 SERVICES,PEOPLE,RUNTIME COLLECTIVE LTD T/A BRANDWATCH,470882,6174,754750710
BEIS,Met Office,2022-08-22,11 SERVICES,PEOPLE,RUNTIME COLLECTIVE LTD T/A BRANDWATCH,470883,6174,754750710
BEIS,Met Office,2022-08-22,11 SERVICES,PEOPLE,RUNTIME COLLECTIVE LTD T/A BRANDWATCH,470884,6174,754750710
BEIS,Met Office,2022-08-22,11 SERVICES,PEOPLE,RUNTIME COLLECTIVE LTD T/A BRANDWATCH,470885,6174,754750710
BEIS,Met Office,2022-08-22,11 SERVICES,PEOPLE,RUNTIME COLLECTIVE LTD T/A BRANDWATCH,470886,6174,754750710
BEIS,Met Office,2022-08-19,08 SOFTWARE LICENCES,TECHNOLOGY AND CIO,SOFTWAREONE,470887,16937.1,GB 942 5301 43
BEIS,Met Office,2022-08-18,11 SERVICES,SERVICES,VOLKSWAGEN GROUP LEASING,470888,100,BG745963883
BEIS,Met Office,2022-08-22,11 SERVICES,CHIEF FINANCIAL OFFICER,HSB ENGINEERING INSURANCE SERVICES LTD,470893,136,652642243
BEIS,Met Office,2022-08-19,08 SOFTWARE LICENCES,TECHNOLOGY AND CIO,SPECIALIST COMPUTER CENTRES,470894,379.1,313651680
BEIS,Met Office,2022-08-18,11 SERVICES,MARKETS,BMG RESEARCH LTD,470895,8545,580 6606 32
BEIS,Met Office,2022-08-23,11 SERVICES,MARKETS,BMG RESEARCH LTD,470896,5775,580 6606 32
BEIS,Met Office,2022-08-23,11 SERVICES,MARKETS,BMG RESEARCH LTD,470896,2770,580 6606 32
BEIS,Met Office,2022-08-18,PLANT AND EQUIPMENT,SERVICES,SONARDYNE INTERNATIONAL LIMITED,470897,40900,GB 591 6950 04
BEIS,Met Office,2022-08-22,11 SERVICES,PROGRAMMES,University Of Durham,470898,74400,GB6755 42510
BEIS,Met Office,2022-08-22,11 SERVICES,PROGRAMMES,University Of Durham,470899,25700,GB6755 42510
BEIS,Met Office,2022-08-22,11 SERVICES,PROGRAMMES,University Of Durham,470900,15943.38,GB6755 42510
BEIS,Met Office,2022-08-18,06 ACCOMMODATION,CHIEF FINANCIAL OFFICER,CBRE MANAGED SERVICES LTD,470902,21588.83,853936883
BEIS,Met Office,2022-08-18,06 ACCOMMODATION,CHIEF FINANCIAL OFFICER,CBRE MANAGED SERVICES LTD,470902,6220.51,853936883
BEIS,Met Office,2022-08-23,11 SERVICES,CHIEF FINANCIAL OFFICER,POSTURITE (UK) LTD,470903,73.78,583565114
BEIS,Met Office,2022-08-23,11 SERVICES,CHIEF FINANCIAL OFFICER,POSTURITE (UK) LTD,470904,677.67,583565114
BEIS,Met Office,2022-08-18,08 SOFTWARE LICENCES,CHIEF FINANCIAL OFFICER,CEMAR,470905,1954.99,915042161
BEIS,Met Office,2022-08-22,06 ACCOMMODATION,CHIEF FINANCIAL OFFICER,TOTAL GAS & POWER LIMITED,470906,21102.52,689638949
BEIS,Met Office,2022-08-22,06 ACCOMMODATION,CHIEF FINANCIAL OFFICER,TOTAL GAS & POWER LIMITED,470907,19328.24,689638949
BEIS,Met Office,2022-08-22,06 ACCOMMODATION,CHIEF FINANCIAL OFFICER,TOTAL GAS & POWER LIMITED,470908,16560.76,689638949
BEIS,Met Office,2022-08-22,06 ACCOMMODATION,CHIEF FINANCIAL OFFICER,TOTAL GAS & POWER LIMITED,470909,13147.12,689638949
BEIS,Met Office,2022-08-22,06 ACCOMMODATION,CHIEF FINANCIAL OFFICER,Severn Trent Water Ltd,470930,292.46,486985565
BEIS,Met Office,2022-08-19,INFORMATION TECHNOLOGY,TECHNOLOGY AND CIO,COMPUTACENTER (UK) LTD,470931,14487.2,490334648
BEIS,Met Office,2022-08-19,11 SERVICES,MARKETS,ULTRA ELECTRONICS LTD NUCLEAR CONTROL SYSTEMS,470932,9923.67,123340754
BEIS,Met Office,2022-08-19,07 EQUIPMENT,SERVICES,Munro Instruments Ltd,470933,3456,977793930
BEIS,Met Office,2022-08-19,11 SERVICES,SERVICES,Munro Instruments Ltd,470933,180,977793930
BEIS,Met Office,2022-08-22,11 SERVICES,SERVICES,APPLIED SATELLITE TECHNOLOGY SYSTEMS LTD,470934,583.49,720108683
BEIS,Met Office,2022-08-22,11 SERVICES,SERVICES,APPLIED SATELLITE TECHNOLOGY SYSTEMS LTD,470935,143.61,720108683
BEIS,Met Office,2022-08-19,12 INTERNATIONAL,MARKETS,APPLIED SATELLITE TECHNOLOGY SYSTEMS LTD,470938,34.64,720108683
BEIS,Met Office,2022-08-23,11 SERVICES,SERVICES,APPLIED SATELLITE TECHNOLOGY SYSTEMS LTD,470940,10949.9,720108683
BEIS,Met Office,2022-08-19,11 SERVICES,SERVICES,APPLIED SATELLITE TECHNOLOGY SYSTEMS LTD,470941,298.43,720108683
BEIS,Met Office,2022-08-19,PLANT AND EQUIPMENT,SERVICES,SONARDYNE INTERNATIONAL LIMITED,470942,16738,GB 591 6950 04
BEIS,Met Office,2022-08-19,PLANT AND EQUIPMENT,SERVICES,SONARDYNE INTERNATIONAL LIMITED,470942,16738,GB 591 6950 04
BEIS,Met Office,2022-08-19,07 EQUIPMENT,SERVICES,SONARDYNE INTERNATIONAL LIMITED,470942,6371,GB 591 6950 04
BEIS,Met Office,2022-08-24,11 SERVICES,TECHNOLOGY AND CIO,BAE SYSTEMS APPLIED INTELLIGENCE LIMITED,470959,9000,GB641407169
BEIS,Met Office,2022-08-24,11 SERVICES,TECHNOLOGY AND CIO,BAE SYSTEMS APPLIED INTELLIGENCE LIMITED,470960,1163,GB641407169
BEIS,Met Office,2022-08-22,11 SERVICES,TECHNOLOGY AND CIO,BAE SYSTEMS APPLIED INTELLIGENCE LIMITED,470963,13200,GB641407169
BEIS,Met Office,2022-08-22,11 SERVICES,TECHNOLOGY AND CIO,BAE SYSTEMS APPLIED INTELLIGENCE LIMITED,470964,5410,GB641407169
BEIS,Met Office,2022-08-22,11 SERVICES,TECHNOLOGY AND CIO,BAE SYSTEMS APPLIED INTELLIGENCE LIMITED,470965,8115,GB641407169
BEIS,Met Office,2022-08-22,11 SERVICES,MARKETS,ULTRA ELECTRONICS LTD NUCLEAR CONTROL SYSTEMS,470966,8152.88,123340754
BEIS,Met Office,2022-08-22,11 SERVICES,TECHNOLOGY AND CIO,BAE SYSTEMS APPLIED INTELLIGENCE LIMITED,470967,12210,GB641407169
BEIS,Met Office,2022-08-22,06 ACCOMMODATION,CHIEF FINANCIAL OFFICER,CBRE MANAGED SERVICES LTD,470968,22629,853936883
BEIS,Met Office,2022-08-22,11 SERVICES,TECHNOLOGY AND CIO,BAE SYSTEMS APPLIED INTELLIGENCE LIMITED,470969,18760,GB641407169
BEIS,Met Office,2022-08-22,11 SERVICES,MARKETS,ULTRA ELECTRONICS LTD NUCLEAR CONTROL SYSTEMS,470970,3007.38,123340754
BEIS,Met Office,2022-08-22,11 SERVICES,MARKETS,ULTRA ELECTRONICS LTD NUCLEAR CONTROL SYSTEMS,470971,49465.86,123340754
BEIS,Met Office,2022-08-22,11 SERVICES,MARKETS,ULTRA ELECTRONICS LTD NUCLEAR CONTROL SYSTEMS,470972,3334.71,123340754
BEIS,Met Office,2022-08-22,11 SERVICES,MARKETS,ULTRA ELECTRONICS LTD NUCLEAR CONTROL SYSTEMS,470972,3187.05,123340754
BEIS,Met Office,2022-08-22,13 MISCELLANEOUS,CHIEF FINANCIAL OFFICER,HEALIX INSURANCE SERVICES LTD,470973,173.41,-
BEIS,Met Office,2022-08-22,13 MISCELLANEOUS,CHIEF FINANCIAL OFFICER,HEALIX INTERNATIONAL,470974,48.3,127632909
BEIS,Met Office,2022-08-24,11 SERVICES,TECHNOLOGY AND CIO,BAE SYSTEMS APPLIED INTELLIGENCE LIMITED,470980,14539,GB641407169
BEIS,Met Office,2022-08-24,11 SERVICES,TECHNOLOGY AND CIO,BAE SYSTEMS APPLIED INTELLIGENCE LIMITED,470981,14421.75,GB641407169
BEIS,Met Office,2022-08-24,11 SERVICES,TECHNOLOGY AND CIO,BAE SYSTEMS APPLIED INTELLIGENCE LIMITED,470982,19698,GB641407169
BEIS,Met Office,2022-08-24,11 SERVICES,TECHNOLOGY AND CIO,BAE SYSTEMS APPLIED INTELLIGENCE LIMITED,470983,18760,GB641407169
BEIS,Met Office,2022-08-24,11 SERVICES,TECHNOLOGY AND CIO,BAE SYSTEMS APPLIED INTELLIGENCE LIMITED,470986,14070,GB641407169
BEIS,Met Office,2022-08-24,11 SERVICES,TECHNOLOGY AND CIO,BAE SYSTEMS APPLIED INTELLIGENCE LIMITED,470987,6750,GB641407169
BEIS,Met Office,2022-08-24,11 SERVICES,TECHNOLOGY AND CIO,BAE SYSTEMS APPLIED INTELLIGENCE LIMITED,470988,12194,GB641407169
BEIS,Met Office,2022-08-24,11 SERVICES,TECHNOLOGY AND CIO,BAE SYSTEMS APPLIED INTELLIGENCE LIMITED,470989,18760,GB641407169
BEIS,Met Office,2022-08-25,11 SERVICES,TECHNOLOGY AND CIO,BAE SYSTEMS APPLIED INTELLIGENCE LIMITED,470990,13200,GB641407169
BEIS,Met Office,2022-08-25,06 ACCOMMODATION,CHIEF FINANCIAL OFFICER,Biffa Waste Services Ltd,470991,300,537911627
BEIS,Met Office,2022-08-25,06 ACCOMMODATION,CHIEF FINANCIAL OFFICER,Biffa Waste Services Ltd,470992,0.56,537911627
BEIS,Met Office,2022-08-25,06 ACCOMMODATION,CHIEF FINANCIAL OFFICER,Biffa Waste Services Ltd,470993,254.1,537911627
BEIS,Met Office,2022-08-25,06 ACCOMMODATION,CHIEF FINANCIAL OFFICER,Biffa Waste Services Ltd,470994,263.09,537911627
BEIS,Met Office,2022-08-24,06 ACCOMMODATION,CHIEF FINANCIAL OFFICER,Biffa Waste Services Ltd,471002,312.65,537911627
BEIS,Met Office,2022-08-24,06 ACCOMMODATION,CHIEF FINANCIAL OFFICER,Biffa Waste Services Ltd,471003,616.98,537911627
BEIS,Met Office,2022-08-24,06 ACCOMMODATION,CHIEF FINANCIAL OFFICER,Biffa Waste Services Ltd,471004,105.3,537911627
BEIS,Met Office,2022-08-24,06 ACCOMMODATION,CHIEF FINANCIAL OFFICER,Biffa Waste Services Ltd,471005,405.86,537911627
BEIS,Met Office,2022-08-24,06 ACCOMMODATION,CHIEF FINANCIAL OFFICER,Biffa Waste Services Ltd,471006,582.53,537911627
BEIS,Met Office,2022-08-24,06 ACCOMMODATION,CHIEF FINANCIAL OFFICER,Biffa Waste Services Ltd,471007,606.97,537911627
BEIS,Met Office,2022-08-24,06 ACCOMMODATION,CHIEF FINANCIAL OFFICER,Biffa Waste Services Ltd,471008,67.47,537911627
BEIS,Met Office,2022-08-24,06 ACCOMMODATION,CHIEF FINANCIAL OFFICER,Biffa Waste Services Ltd,471009,74.1,537911627
BEIS,Met Office,2022-08-22,03 STAFF COSTS T&S,CHIEF FINANCIAL OFFICER,ENTERPRISE RENT A CAR UK LTD,471010,1100.91,215557314
BEIS,Met Office,2022-08-22,07 EQUIPMENT,CHIEF FINANCIAL OFFICER,CDW LTD,471011,71.98,902194939
BEIS,Met Office,2022-08-24,11 SERVICES,CHIEF FINANCIAL OFFICER,POSTURITE (UK) LTD,471012,747.11,583565114
BEIS,Met Office,2022-08-22,INFORMATION TECHNOLOGY,TECHNOLOGY AND CIO,COMPUTACENTER (UK) LTD,471013,37154.4,490334648
BEIS,Met Office,2022-08-22,11 SERVICES,MARKETS,LHR BUSINESS SUPPORT CENTRE LTD,471014,13.75,927365404
BEIS,Met Office,2022-08-22,07 EQUIPMENT,SERVICES,SWALE TECHNOLOGIES LTD,471015,28766.14,530846451
BEIS,Met Office,2022-08-22,11 SERVICES,CHIEF FINANCIAL OFFICER,HOGAN LOVELLS INTERNATIONAL LLP,471016,643,GB123371543
BEIS,Met Office,2022-08-24,11 SERVICES,PROGRAMMES,FUNDACAO ARTHUR BERNARDES - FUNARBE,471017,128141.59,-
BEIS,Met Office,2022-08-23,10 EQUIPMENT MAINTENANCE,SERVICES,YOUNG CALIBRATION LIMITED,471018,1650,673900720
BEIS,Met Office,2022-08-23,11 SERVICES,SERVICES,YOUNG CALIBRATION LIMITED,471018,15,673900720
BEIS,Met Office,2022-08-26,FIXTURE & FITTINGS,CHIEF FINANCIAL OFFICER,S SMITH & SONS CARPETS LTD,471020,29673,456159529
BEIS,Met Office,2022-08-24,08 SOFTWARE LICENCES,SERVICES,BARRIER NETWORKS LTD,471053,2800,GB135643417
BEIS,Met Office,2022-08-24,10 EQUIPMENT MAINTENANCE,TECHNOLOGY AND CIO,COMPUTACENTER (UK) LTD,471054,2865.01,490334648
BEIS,Met Office,2022-08-24,08 SOFTWARE LICENCES,TECHNOLOGY AND CIO,HUT 6 SECURITY LIMITED,471055,880,277 2052 03
BEIS,Met Office,2022-08-26,08 SOFTWARE LICENCES,PEOPLE,ACCESS INTELLIGENCE MEDIA AND COMMUNICATIONS,471057,19595,GB225346716
BEIS,Met Office,2022-08-26,STOCK,SERVICES,Campbell Scientific Ltd,471058,0,428453933
BEIS,Met Office,2022-08-26,STOCK,SERVICES,Campbell Scientific Ltd,471058,590.4,428453933
BEIS,Met Office,2022-08-26,TRADE CREDITORS,SERVICES,Campbell Scientific Ltd,471058,1080,428453933
BEIS,Met Office,2022-08-26,11 SERVICES,SERVICES,Campbell Scientific Ltd,471058,60,428453933
BEIS,Met Office,2022-08-24,06 ACCOMMODATION,CHIEF FINANCIAL OFFICER,CBRE MANAGED SERVICES LTD,471059,1,853936883
BEIS,Met Office,2022-08-24,06 ACCOMMODATION,CHIEF FINANCIAL OFFICER,CBRE MANAGED SERVICES LTD,471059,149175.92,853936883
BEIS,Met Office,2022-08-24,06 ACCOMMODATION,CHIEF FINANCIAL OFFICER,CBRE MANAGED SERVICES LTD,471062,20572.25,853936883
BEIS,Met Office,2022-08-24,06 ACCOMMODATION,CHIEF FINANCIAL OFFICER,CBRE MANAGED SERVICES LTD,471062,1,853936883
BEIS,Met Office,2022-08-24,11 SERVICES,PROGRAMMES,FUNDACAO ARTHUR BERNARDES - FUNARBE,471071,3616.32,-
BEIS,Met Office,2022-08-30,06 ACCOMMODATION,CHIEF FINANCIAL OFFICER,GROSVENOR SYSTEMS LTD,471081,456,342873151
BEIS,Met Office,2022-08-30,11 SERVICES,MARKETS,WESTPOINT CENTRE (DEVON) LTD,471092,250,585 6015 25
BEIS,Met Office,2022-08-26,06 ACCOMMODATION,CHIEF FINANCIAL OFFICER,CORNWALL FLYING CLUB LTD,471101,20,313291390
BEIS,Met Office,2022-08-26,06 ACCOMMODATION,MARKETS,GEORGE DUNCAN MACLEOD,471102,250,-
BEIS,Met Office,2022-08-26,06 ACCOMMODATION,MARKETS,GEORGE DUNCAN MACLEOD,471102,35,-
BEIS,Met Office,2022-08-26,06 ACCOMMODATION,MARKETS,R & C CRICHTON LTD,471103,200,933 7802 12
BEIS,Met Office,2022-08-26,06 ACCOMMODATION,MARKETS,R & C CRICHTON LTD,471103,36,933 7802 12
BEIS,Met Office,2022-08-26,06 ACCOMMODATION,CHIEF FINANCIAL OFFICER,MAURICE MACAULAY,471104,1246.37,680949687
BEIS,Met Office,2022-08-26,04 CONTRACTORS,PEOPLE,MATRIX SCM LIMITED,471105,216778.1,249 5734 68
BEIS,Met Office,2022-08-26,06 ACCOMMODATION,CHIEF FINANCIAL OFFICER,IHS GLOBAL LTD,471107,12263.87,207851367
BEIS,Met Office,2022-08-30,10 EQUIPMENT MAINTENANCE,SERVICES,Npl Management Ltd,471108,4322.8,207523388
BEIS,Met Office,2022-08-26,13 MISCELLANEOUS,PEOPLE,HEALTH MANAGEMENT LTD,471111,1864.53,792250621
BEIS,Met Office,2022-08-26,06 ACCOMMODATION,CHIEF FINANCIAL OFFICER,GREENSTAR CLEANERS LTD,471112,204.6,492376222
BEIS,Met Office,2022-08-31,13 MISCELLANEOUS,PEOPLE,CALM WATERS COUNSELLING,471113,80,-
BEIS,Met Office,2022-08-30,03 STAFF COSTS T&S,SERVICES,CHARLIE'S TRAVEL LTD,471130,62.5,783848277
BEIS,Met Office,2022-08-30,03 STAFF COSTS T&S,SERVICES,CHARLIE'S TRAVEL LTD,471131,20.83,783848277
BEIS,Met Office,2022-08-30,11 SERVICES,MARKETS,AEROSPACE & MARINE INTERNATIONAL (UK) LIMITED,471132,27968.81,GB 856729086
BEIS,Met Office,2022-08-31,11 SERVICES,OFFICE OF THE CEO,OSBORNE CLARKE LLP,471145,14000,GB138187353
BEIS,Met Office,2022-08-31,11 SERVICES,PROGRAMMES,Frazer-Nash Consultancy Ltd,471147,12200,GB564103956
BEIS,Met Office,2022-08-31,11 SERVICES,SERVICES,VOLKSWAGEN GROUP LEASING,471150,3697.1,BG745963883
BEIS,Met Office,2022-08-31,11 SERVICES,CHIEF FINANCIAL OFFICER,WEBEX COMMUNICATIONS UK LTD,471151,209.92,815974302
BEIS,Met Office,2022-08-31,11 SERVICES,CHIEF FINANCIAL OFFICER,OPEN TEXT UK LTD,471155,100,837871308
BEIS,Met Office,2022-08-31,03 STAFF COSTS T&S,CHIEF FINANCIAL OFFICER,ENTERPRISE RENT A CAR UK LTD,471174,498.44,215557314
BEIS,Met Office,2022-08-31,11 SERVICES,CHIEF FINANCIAL OFFICER,LEASEDRIVE RENTAL MANAGEMENT LTD,471186,438.5,733546040
BEIS,Met Office,2022-08-24,TRADE CREDITORS,OTHER,NATWEST COMMERCIAL CARDS DIVISION,471043,159123.15,N/A
BEIS,Met Office,2022-08-24,07 EQUIPMENT,CHIEF FINANCIAL OFFICER,NATWEST COMMERCIAL CARDS DIVISION,471044,7942.89,N/A
BEIS,Met Office,2022-08-03,12 INTERNATIONAL,MARKETS,REDACTED PERSONAL DATA,10728,2911.73,-
BEIS,Met Office,2022-08-03,12 INTERNATIONAL,MARKETS,REDACTED PERSONAL DATA,10728,1235.41,-
BEIS,Met Office,2022-08-01,11 SERVICES,PEOPLE,REDACTED PERSONAL DATA,452283,6298,143043312
BEIS,Met Office,2022-08-08,11 SERVICES,SERVICES,REDACTED PERSONAL DATA,470021,130.24,-
BEIS,Met Office,2022-08-01,11 SERVICES,PEOPLE,REDACTED PERSONAL DATA,470342,405,143043312
BEIS,Met Office,2022-08-01,11 SERVICES,PEOPLE,REDACTED PERSONAL DATA,470343,3063,143043312
BEIS,Met Office,2022-08-05,06 ACCOMMODATION,MARKETS,REDACTED PERSONAL DATA,470529,320,UTR: 6885284589
BEIS,Met Office,2022-08-22,11 SERVICES,CHIEF FINANCIAL OFFICER,REDACTED PERSONAL DATA,470975,119,729159704
